bitfinex-derivatives/quotes_BTCF0:USTF0_20250211
["timestamp","ask_amount","ask_price","bid_price","bid_amount"]
[1739271147750,0.2039364,98055.0,98045.0,0.00015298]
[1739271147751,0.2039551,98046.0,98045.0,0.00015298]
[1739271149047,0.2039551,98046.0,98045.0,0.00415298]
[1739271149448,0.2049551,98046.0,98045.0,0.01715298]
[1739271151854,0.21500933,98046.0,98045.0,0.01715298]
[1739271153054,0.2049551,98046.0,98045.0,0.01715298]
[1739271163956,0.001,98046.0,98033.0,0.18328653]
[1739271164156,0.2039801,98034.0,98033.0,0.18328653]
[1739271164450,0.2039801,98034.0,98033.0,0.19336685]
[1739271165854,0.2039801,98034.0,98033.0,0.20636685]
[1739271166253,0.2039801,98034.0,98033.0,0.19628653]
[1739271166560,0.2039801,98034.0,98033.0,0.013]
[1739271167154,0.2049801,98034.0,98033.0,0.007]
[1739271167461,0.2069801,98034.0,98033.0,0.008]
[1739271196281,0.003,98034.0,98033.0,0.008]
[1739271199577,0.003,98034.0,98033.0,0.19128653]
[1739271203578,0.003,98034.0,98033.0,0.008]
[1739271214778,0.003,98034.0,98033.0,0.19160172]
[1739271218388,0.003,98034.0,98033.0,0.008]
[1739271225587,0.1528014,98041.0,98040.0,0.2039676]
[1739271225896,0.1827406,98049.0,98048.0,0.2039509]
[1739271226097,0.1827406,98049.0,98048.0,0.6313509]
[1739271227397,0.1827406,98049.0,98048.0,0.6343509]
[1739271227596,0.1837406,98049.0,98048.0,0.6353509]
[1739271229491,0.00015298,98058.0,98048.0,0.4314]
[1739271229803,0.00015298,98058.0,98057.0,0.5647322]
[1739271230694,0.00115298,98058.0,98057.0,0.5647322]
[1739271233396,0.00115298,98058.0,98057.0,0.3608]
[1739271236609,0.0113614,98058.0,98057.0,0.3608]
[1739271236806,0.00115298,98058.0,98057.0,0.3608]
[1739271249397,0.00115298,98058.0,98048.0,0.36167298]
[1739271249597,0.2039402,98054.0,98048.0,0.36095298]
[1739271249802,0.0943,98053.0,98048.0,0.36095298]
[1739271250003,0.2039426,98052.0,98048.0,0.36095298]
[1739271250208,0.2039468,98050.0,98048.0,0.36095298]
[1739271250512,0.2039468,98050.0,98048.0,0.00315298]
[1739271250914,0.2039468,98050.0,98048.0,0.00715298]
[1739271251815,0.2049468,98050.0,98048.0,0.00715298]
[1739271253309,0.2049468,98050.0,98048.0,0.00415298]
[1739271253514,0.2049468,98050.0,98048.0,0.00715298]
[1739271254013,0.21521979,98050.0,98048.0,0.00715298]
[1739271258008,0.04959206,98049.0,98048.0,0.00715298]
[1739271259412,0.04959206,98049.0,98048.0,0.00415298]
[1739271259614,0.04959206,98049.0,98048.0,0.00715298]
[1739271259919,0.04959206,98049.0,98048.0,0.00315298]
[1739271260220,0.05059206,98049.0,98048.0,0.00715298]
[1739271261120,0.001,98049.0,98048.0,0.00715298]
[1739271261716,0.2049488,98049.0,98048.0,0.00715298]
[1739271262513,0.2049488,98049.0,98048.0,0.00415298]
[1739271262714,0.2079488,98049.0,98048.0,0.00415298]
[1739271263815,0.2169488,98049.0,98048.0,0.00015298]
[1739271276731,0.36944936,98049.0,98048.0,0.00015298]
[1739271279526,0.2039717,98038.0,98037.0,0.3608]
[1739271280929,0.2059717,98038.0,98037.0,0.3608]
[1739271284633,0.2039758,98036.0,98035.0,0.0318]
[1739271286937,0.2039758,98036.0,98035.0,0.0328]
[1739271287139,0.2049758,98036.0,98035.0,0.0328]
[1739271290351,0.2049758,98036.0,98035.0,0.001]
[1739271317366,0.25457384,98036.0,98035.0,0.001]
[1739271318765,0.2040008,98024.0,98023.0,0.18308052]
[1739271318963,0.2040008,98024.0,98020.0,0.09]
[1739271318964,0.204007,98021.0,98020.0,0.09]
[1739271319165,0.2040133,98018.0,98010.0,0.30556147]
[1739271320765,0.2050133,98018.0,98017.0,0.24868455]
[1739271321070,0.2050133,98018.0,98017.0,0.25168455]
[1739271322073,0.2050133,98018.0,98017.0,0.007]
[1739271327474,0.204032,98009.0,98008.0,0.00015298]
[1739271328776,0.206032,98009.0,98008.0,0.00915298]
[1739271335476,0.21609324,98009.0,98008.0,0.00915298]
[1739271335684,0.206032,98009.0,98008.0,0.00915298]
[1739271375204,0.002,98009.0,98008.0,0.21318708]
[1739271377004,0.002,98009.0,98008.0,0.58404781]
[1739271377410,0.1827406,98020.0,98008.0,0.41051371]
[1739271377612,0.1827406,98020.0,98019.0,0.2040112]
[1739271379116,0.1827406,98020.0,98019.0,0.21412306]
[1739271379317,0.1837406,98020.0,98019.0,0.21412306]
[1739271380124,0.1837406,98020.0,98019.0,0.21612306]
[1739271381316,0.001,98020.0,98019.0,0.21612306]
[1739271383215,0.001,98020.0,98019.0,0.22601262]
[1739271385211,0.001,98020.0,98019.0,0.21612306]
[1739271386910,0.001,98020.0,98019.0,0.93772306]
[1739271388111,0.2039596,98044.0,98040.0,0.2039657]
[1739271388615,0.2039676,98040.0,98035.0,0.06652]
[1739271388816,0.2039676,98040.0,98035.0,0.2704974]
[1739271389322,0.2039676,98040.0,98036.0,0.2039749]
[1739271390317,0.2069676,98040.0,98037.0,0.2039731]
[1739271390510,0.2159676,98040.0,98037.0,0.2039731]
[1739271390713,0.2129676,98040.0,98037.0,0.2039731]
[1739271391023,0.2159676,98040.0,98037.0,0.2039731]
[1739271392425,0.2169676,98040.0,98037.0,0.2039731]
[1739271392930,0.2139676,98040.0,98037.0,0.2039731]
[1739271393120,0.2169676,98040.0,98037.0,0.2039731]
[1739271398023,0.2039716,98039.0,98037.0,0.2039731]
[1739271398630,0.2354716,98039.0,98037.0,0.2039731]
[1739271399222,0.2454716,98039.0,98037.0,0.2039731]
[1739271399530,0.2484716,98039.0,98037.0,0.2039731]
[1739271401733,0.2039716,98038.0,98037.0,0.2039731]
[1739271403035,0.2169716,98038.0,98037.0,0.2039731]
[1739271413538,0.2039741,98037.0,98033.0,0.3608]
[1739271413735,0.2039741,98037.0,98036.0,0.2039758]
[1739271414731,0.2109741,98037.0,98036.0,0.2039758]
[1739271415435,0.2129741,98037.0,98036.0,0.2039758]
[1739271415631,0.2149741,98037.0,98036.0,0.2039758]
[1739271415838,0.2129741,98037.0,98036.0,0.2039758]
[1739271416033,0.2159741,98037.0,98036.0,0.2039758]
[1739271423733,0.26556924,98037.0,98036.0,0.2039758]
[1739271426941,0.2159741,98037.0,98036.0,0.2039758]
[1739271431040,0.2039796,98035.0,98032.0,0.3608]
[1739271431246,0.2039796,98035.0,98032.0,0.5647838]
[1739271431645,0.2039796,98035.0,98033.0,0.2039817]
[1739271432453,0.2059796,98035.0,98033.0,0.2039817]
[1739271432632,0.2119796,98035.0,98033.0,0.2039817]
[1739271433438,0.2129796,98035.0,98033.0,0.2039817]
[1739271434945,0.2129796,98035.0,98034.0,0.20398]
[1739271436048,0.2039796,98035.0,98034.0,0.20398]
[1739271436246,0.2139796,98035.0,98034.0,0.20398]
[1739271438844,0.36653083,98035.0,98034.0,0.20398]
[1739271441149,0.16255123,98035.0,98031.0,0.3608]
[1739271441345,0.2039904,98029.0,98020.0,0.07870719]
[1739271441555,0.2039904,98029.0,98027.0,0.2039939]
[1739271441756,0.2039904,98029.0,98028.0,0.36095298]
[1739271443253,0.2079904,98029.0,98028.0,0.36095298]
[1739271444545,0.2079904,98029.0,98028.0,0.37093896]
[1739271446664,0.2079904,98029.0,98028.0,0.36095298]
[1739271447755,0.2079904,98029.0,98028.0,0.00015298]
[1739271451355,0.21834763,98029.0,98028.0,0.00015298]
[1739271456166,0.26794743,98029.0,98028.0,0.00015298]
[1739271463572,0.21834763,98029.0,98028.0,0.00015298]
[1739271471079,0.57914763,98029.0,98028.0,0.00015298]
[1739271476567,0.62875238,98029.0,98028.0,0.00015298]
[1739271483570,0.2040174,98016.0,98015.0,0.06644]
[1739271484781,0.2050174,98016.0,98015.0,0.06744]
[1739271485577,0.2050174,98016.0,98015.0,0.07044]
[1739271487975,0.21519982,98016.0,98015.0,0.07044]
[1739271494379,0.2050174,98016.0,98015.0,0.07044]
[1739271495794,0.2050174,98016.0,98015.0,0.004]
[1739271495987,0.001,98016.0,98015.0,0.2744595]
[1739271499197,0.001,98016.0,98015.0,0.6352595]
[1739271505096,0.001,98016.0,98015.0,0.43124]
[1739271505286,0.001,98016.0,98015.0,0.4312]
[1739271505682,0.001,98016.0,98015.0,0.004]
[1739271509096,0.05060713,98016.0,98015.0,0.004]
[1739271517296,0.001,98016.0,98015.0,0.004]
[1739271519599,0.2050174,98016.0,98015.0,0.004]
[1739271550341,0.2050174,98016.0,98015.0,0.2080195]
[1739271567752,0.25462247,98016.0,98015.0,0.2080195]
[1739271575554,0.2050174,98016.0,98015.0,0.2080195]
[1739271578054,0.001,98016.0,98015.0,0.2080195]
[1739271578954,0.15364519,98016.0,98015.0,0.2080195]
[1739271582262,0.0506054,98016.0,98015.0,0.2080195]
[1739271585163,0.001,98016.0,98015.0,0.2080195]
[1739271588269,0.0506054,98016.0,98015.0,0.2080195]
[1739271590269,0.2546229,98016.0,98015.0,0.2080195]
[1739271590472,0.2546229,98016.0,98015.0,0.004]
[1739271592074,0.2050175,98016.0,98015.0,0.004]
[1739271594673,0.2150584,98016.0,98015.0,0.004]
[1739271596074,0.36772406,98016.0,98015.0,0.004]
[1739271598574,0.35768316,98016.0,98015.0,0.004]
[1739271598977,0.25462532,98016.0,98015.0,0.004]
[1739271616488,0.05060782,98016.0,98015.0,0.004]
[1739271616787,0.05060782,98016.0,98015.0,0.04448204]
[1739271616991,0.05060782,98016.0,98015.0,0.0343]
[1739271624691,0.25462532,98016.0,98015.0,0.0343]
[1739271624887,0.25462532,98016.0,98015.0,0.004]
[1739271627598,0.25462532,98016.0,98015.0,0.2080195]
[1739271630400,0.001,98016.0,98015.0,0.2080195]
[1739271636490,0.001,98016.0,98015.0,0.5688195]
[1739271646307,0.001,98016.0,98015.0,0.2080195]
[1739271646510,0.001,98016.0,98015.0,0.5688195]
[1739271648906,0.001,98016.0,98015.0,0.2080195]
[1739271649303,0.001,98016.0,98015.0,0.5688195]
[1739271649807,0.001,98016.0,98015.0,0.2080195]
[1739271650002,0.001,98016.0,98015.0,0.5688195]
[1739271655917,0.001,98016.0,98015.0,0.2080195]
[1739271656216,0.001,98016.0,98015.0,0.5688195]
[1739271663313,0.001,98016.0,98015.0,0.3648]
[1739271664717,0.15363105,98016.0,98015.0,0.3648]
[1739271668224,0.15363105,98016.0,98015.0,0.004]
[1739271668626,0.001,98016.0,98015.0,0.004]
[1739271674618,0.05060423,98016.0,98015.0,0.004]
[1739271680525,0.25462173,98016.0,98015.0,0.004]
[1739271682025,0.2050175,98016.0,98015.0,0.004]
[1739271689427,0.001,98016.0,98015.0,0.004]
[1739271689633,0.05060423,98016.0,98015.0,0.004]
[1739271695934,0.001,98016.0,98015.0,0.004]
[1739271698736,0.001,98016.0,98015.0,0.2080196]
[1739271706236,0.2050175,98016.0,98015.0,0.2080196]
[1739271707945,0.2060175,98016.0,98015.0,0.2070196]
[1739271708947,0.2090175,98016.0,98015.0,0.2040196]
[1739271709542,0.2100175,98016.0,98015.0,0.2040196]
[1739271711948,0.44236224,98016.0,98015.0,0.2040196]
[1739271713251,0.23834474,98016.0,98015.0,0.2040196]
[1739271715843,0.23834474,98016.0,98015.0,0.2702596]
[1739271718652,0.006,98016.0,98015.0,0.2702596]
[1739271724356,0.006,98016.0,98015.0,0.6310596]
[1739271727959,0.006,98016.0,98015.0,0.2702596]
[1739271728170,0.006,98016.0,98015.0,0.6310596]
[1739271742380,0.15873107,98016.0,98015.0,0.6310596]
[1739271742972,0.1827406,98024.0,98023.0,0.2040029]
[1739271743170,0.0937,98040.0,98035.0,0.2039779]
[1739271743171,0.10406259,98040.0,98035.0,0.2039779]
[1739271743375,0.10406259,98040.0,98035.0,0.6309779]
[1739271745781,0.02253055,98036.0,98035.0,0.6329779]
[1739271748080,0.02253055,98036.0,98035.0,0.6432292]
[1739271753189,0.00015298,98045.0,98035.0,0.4392513]
[1739271753384,0.00015298,98045.0,98044.0,0.5647592]
[1739271754881,0.00515298,98045.0,98044.0,0.5647592]
[1739271755285,0.00015298,98045.0,98044.0,0.5647592]
[1739271755489,0.00515298,98045.0,98044.0,0.5657592]
[1739271755896,0.01815298,98045.0,98044.0,0.5657592]
[1739271756588,0.00515298,98045.0,98044.0,0.5657592]
[1739271756792,0.00815298,98045.0,98044.0,0.5667592]
[1739271757794,0.032,98059.0,98044.0,0.3628]
[1739271757985,0.0652,98069.0,98063.0,0.2039185]
[1739271758193,0.0652,98069.0,98067.0,0.2039106]
[1739271759282,0.0652,98069.0,98067.0,0.5647106]
[1739271760087,0.0802,98069.0,98067.0,0.5657106]
[1739271760692,0.0652,98069.0,98067.0,0.5647106]
[1739271760895,0.0802,98069.0,98067.0,0.5657106]
[1739271761487,0.0802,98069.0,98067.0,0.5667106]
[1739271763786,0.0802,98069.0,98067.0,0.3628]
[1739271763989,0.2841088,98069.0,98067.0,0.3628]
[1739271788305,0.17128772,98068.0,98067.0,0.3628]
[1739271789494,0.17128772,98068.0,98067.0,0.001]
[1739271789695,0.18428772,98068.0,98067.0,0.002]
[1739271790105,0.18428772,98068.0,98067.0,0.001]
[1739271790309,0.18528772,98068.0,98067.0,0.002]
[1739271791404,0.06358002,98068.0,98067.0,0.002]
[1739271791709,0.42438002,98068.0,98058.0,0.00015298]
[1739271791903,0.3608,98059.0,98045.0,0.0308]
[1739271792103,0.2039526,98048.0,98046.0,0.06712]
[1739271793603,0.2049526,98048.0,98046.0,0.06712]
[1739271793807,0.001,98048.0,98046.0,0.06712]
[1739271794796,0.001,98048.0,98046.0,0.2710737]
[1739271795213,0.001,98048.0,98046.0,0.2720737]
[1739271795503,0.15284976,98057.0,98056.0,0.2039342]
[1739271795701,0.15284976,98057.0,98056.0,0.5647342]
[1739271796098,0.15284976,98057.0,98056.0,2.0647342]
[1739271796509,0.15584976,98057.0,98056.0,2.0657342]
[1739271797700,0.15584976,98057.0,98056.0,2.07601859]
[1739271797898,0.15784976,98057.0,98056.0,2.07701859]
[1739271800408,0.15784976,98057.0,98056.0,0.57701859]
[1739271800607,0.00515298,98057.0,98056.0,0.57701859]
[1739271804213,0.00515298,98057.0,98056.0,0.64413859]
[1739271805014,0.00515298,98057.0,98056.0,0.82750238]
[1739271808914,0.00515298,98057.0,98056.0,0.64413859]
[1739271814519,0.00515298,98057.0,98056.0,0.28333859]
[1739271814722,0.00515298,98057.0,98056.0,0.64413859]
[1739271816624,0.00515298,98057.0,98056.0,0.88857047]
[1739271822517,0.00515298,98057.0,98056.0,0.82145047]
[1739271822925,0.00515298,98057.0,98056.0,0.88845047]
[1739271824921,0.00515298,98057.0,98056.0,0.64401859]
[1739271827633,0.00515298,98057.0,98056.0,0.28321859]
[1739271828127,0.00515298,98057.0,98056.0,0.64401859]
[1739271833623,0.00515298,98057.0,98056.0,0.28321859]
[1739271833823,0.00515298,98057.0,98056.0,0.64401859]
[1739271838932,0.00515298,98057.0,98056.0,0.28321859]
[1739271839133,0.00515298,98057.0,98056.0,0.64401859]
[1739271839336,0.00515298,98057.0,98056.0,0.8887004]
[1739271845936,0.00515298,98057.0,98056.0,0.5279004]
[1739271846132,0.00515298,98057.0,98056.0,0.8887004]
[1739271847128,0.00515298,98057.0,98056.0,0.64401859]
[1739271852246,0.00515298,98057.0,98056.0,0.28321859]
[1739271852435,0.00515298,98057.0,98056.0,0.64401859]
[1739271861951,0.00515298,98057.0,98056.0,0.64365859]
[1739271864944,0.00515298,98057.0,98056.0,0.28285859]
[1739271865158,0.00515298,98057.0,98056.0,0.64365859]
[1739271879452,0.00515298,98057.0,98056.0,0.28285859]
[1739271879656,0.00515298,98057.0,98056.0,0.64365859]
[1739271897376,0.00515298,98057.0,98056.0,0.28285859]
[1739271897679,0.00515298,98057.0,98056.0,0.64365859]
[1739271901595,0.00515298,98057.0,98056.0,0.28285859]
[1739271901899,0.00515298,98057.0,98056.0,0.64365859]
[1739271912301,0.00515298,98057.0,98056.0,0.28285859]
[1739271912492,0.00515298,98057.0,98056.0,0.64365859]
[1739271913704,0.00515298,98057.0,98056.0,0.28285859]
[1739271914000,0.00515298,98057.0,98056.0,0.64365859]
[1739271914196,0.00515298,98057.0,98056.0,0.28285859]
[1739271914402,0.00515298,98057.0,98056.0,0.64365859]
[1739271917896,0.00515298,98057.0,98056.0,0.28285859]
[1739271918102,0.00515298,98057.0,98056.0,0.64365859]
[1739271921800,0.00515298,98057.0,98056.0,0.64321859]
[1739271923608,0.00515298,98057.0,98056.0,0.28241859]
[1739271923810,0.00515298,98057.0,98056.0,0.64321859]
[1739271924003,0.00515298,98057.0,98056.0,0.43928439]
[1739271929814,0.00515298,98057.0,98056.0,0.07848439]
[1739271930013,0.00515298,98057.0,98056.0,0.43928439]
[1739271933713,0.00515298,98057.0,98056.0,0.07848439]
[1739271933916,0.00515298,98057.0,98056.0,0.43928439]
[1739271938524,0.00515298,98057.0,98056.0,0.07848439]
[1739271938730,0.00515298,98057.0,98056.0,0.43928439]
[1739271940424,0.00515298,98057.0,98056.0,0.07848439]
[1739271940725,0.00515298,98057.0,98056.0,0.43928439]
[1739271947228,0.00515298,98057.0,98056.0,0.07848439]
[1739271947430,0.00515298,98057.0,98056.0,0.43928439]
[1739271951231,0.00515298,98057.0,98056.0,0.07848439]
[1739271951431,0.00515298,98057.0,98056.0,0.43928439]
[1739271954837,0.20908518,98057.0,98056.0,0.43928439]
[1739271955341,0.20908518,98057.0,98056.0,0.07848439]
[1739271955639,0.20908518,98057.0,98056.0,0.43928439]
[1739271957838,0.00515298,98057.0,98056.0,0.43928439]
[1739271965934,0.00515298,98057.0,98056.0,0.53388439]
[1739271966134,0.15269678,98072.0,98056.0,0.53388439]
[1739271966342,0.2038663,98089.0,98071.0,0.3608]
[1739271966542,0.01036702,98086.0,98077.0,0.2038902]
[1739271966746,0.2038663,98089.0,98078.0,0.2038872]
[1739271967343,0.20401928,98089.0,98079.0,0.3608]
[1739271967648,0.00015298,98089.0,98079.0,0.3608]
[1739271967848,0.2038757,98085.0,98079.0,0.3608]
[1739271970551,0.00015298,98089.0,98079.0,0.3618]
[1739271970746,0.00015298,98089.0,98079.0,0.5190633]
[1739271970947,0.00015298,98089.0,98081.0,0.2038802]
[1739271971245,0.00015298,98089.0,98079.0,0.5190633]
[1739271971246,0.00015298,98089.0,98082.0,0.2038794]
[1739271971443,0.00015298,98089.0,98083.0,0.203877]
[1739271971643,0.00015298,98089.0,98084.0,0.2038754]
[1739271972052,0.00015298,98089.0,98085.0,0.2038733]
[1739271972754,0.00015298,98089.0,98087.0,0.203868]
[1739271973248,0.00115298,98089.0,98087.0,0.203868]
[1739271974243,0.20402068,98089.0,98087.0,0.203868]
[1739271974439,0.20502068,98089.0,98087.0,0.205868]
[1739271978953,0.20502068,98089.0,98087.0,0.21605599]
[1739271991563,0.00115298,98089.0,98087.0,0.21605599]
[1739271991758,0.2038677,98088.0,98087.0,0.21605599]
[1739271993073,0.2048677,98088.0,98087.0,0.21605599]
[1739272054213,0.2048677,98088.0,98087.0,0.01218799]
[1739272055230,0.2048677,98088.0,98087.0,0.002]
[1739272055524,0.0509677,98087.0,98069.0,0.00015298]
[1739272055713,0.3608,98077.0,98068.0,0.14077546]
[1739272055917,0.3608,98069.0,98068.0,0.09087546]
[1739272056119,0.3608,98069.0,98068.0,0.30591492]
[1739272056325,0.6929,98069.0,98068.0,0.08303232]
[1739272056518,0.6929,98069.0,98062.0,0.00152937]
[1739272056519,0.2039197,98063.0,98062.0,0.00152937]
[1739272056722,0.3608,98063.0,98059.0,0.09087546]
[1739272056918,0.203926,98060.0,98059.0,0.09087546]
[1739272059325,0.203926,98060.0,98059.0,0.09187546]
[1739272059726,0.203926,98060.0,98059.0,0.09487546]
[1739272059926,0.203926,98060.0,98059.0,0.004]
[1739272059927,0.25351403,98060.0,98059.0,0.004]
[1739272063332,0.203926,98060.0,98059.0,0.004]
[1739272067634,0.203926,98060.0,98059.0,9.291e-05]
[1739272078328,0.203926,98060.0,98059.0,1e-08]
[1739272079540,0.421826,98060.0,98059.0,1e-08]
[1739272080542,0.2039385,98054.0,98053.0,9e-08]
[1739272080733,0.5647385,98054.0,98053.0,9e-08]
[1739272081837,0.57499097,98054.0,98053.0,9e-08]
[1739272082138,0.57499097,98054.0,98053.0,0.00300009]
[1739272082845,0.57499097,98054.0,98053.0,0.01000009]
[1739272083043,0.21419097,98054.0,98053.0,0.01000009]
[1739272083239,0.93579097,98054.0,98053.0,0.01000009]
[1739272083640,0.93579097,98054.0,98053.0,9e-08]
[1739272085149,0.9853871,98054.0,98053.0,9e-08]
[1739272085343,1.2032871,98054.0,98053.0,9e-08]
[1739272086046,0.9993486,98054.0,98046.0,0.00124867]
[1739272086241,0.203953,98047.0,98046.0,0.00124867]
[1739272087346,0.203953,98047.0,98046.0,0.01124867]
[1739272087744,0.203953,98047.0,98046.0,0.01]
[1739272088338,0.203953,98047.0,98046.0,0.014]
[1739272088937,0.203953,98047.0,98046.0,0.01]
[1739272089142,0.203953,98047.0,98046.0,0.014]
[1739272089545,0.204953,98047.0,98046.0,0.015]
[1739272092039,0.25454913,98047.0,98046.0,0.015]
[1739272102852,0.23265441,98047.0,98044.0,0.00015298]
[1739272103156,0.5647572,98045.0,98044.0,0.00015298]
[1739272105361,0.61735333,98045.0,98044.0,0.00015298]
[1739272105561,0.62535333,98045.0,98044.0,0.00115298]
[1739272110166,0.62535333,98045.0,98044.0,8e-08]
[1739272110468,0.42139613,98045.0,98031.0,0.0329]
[1739272110765,0.2040279,98011.0,98003.0,0.06616]
[1739272110972,0.2040321,98009.0,98008.0,0.0318]
[1739272112472,0.2050321,98009.0,98008.0,0.0468]
[1739272112665,0.2050321,98009.0,98008.0,0.0538]
[1739272113169,0.2050321,98009.0,98008.0,0.0388]
[1739272113170,0.2040321,98009.0,98008.0,0.0388]
[1739272113466,0.2050321,98009.0,98008.0,0.0538]
[1739272114074,0.2050321,98009.0,98008.0,0.0468]
[1739272114371,0.2050321,98009.0,98008.0,0.0538]
[1739272124678,0.2154153,98009.0,98008.0,0.0538]
[1739272125381,0.2154153,98009.0,98008.0,0.022]
[1739272127982,0.5762153,98009.0,98008.0,0.022]
[1739272139489,0.2154153,98009.0,98008.0,0.022]
[1739272149301,0.5762153,98009.0,98008.0,0.022]
[1739272151194,0.2154153,98009.0,98008.0,0.022]
[1739272151400,0.5762153,98009.0,98008.0,0.022]
[1739272154506,0.62582652,98009.0,98008.0,0.022]
[1739272163901,0.62582652,98009.0,98008.0,0.00040527]
[1739272178026,0.80899863,98009.0,98008.0,0.00040527]
[1739272181431,0.62582652,98009.0,98008.0,0.00040527]
[1739272182536,0.26502652,98009.0,98008.0,0.00040527]
[1739272182920,0.62582652,98009.0,98008.0,0.00040527]
[1739272189632,0.80904048,98009.0,98008.0,0.00040527]
[1739272189832,0.44824048,98009.0,98008.0,0.00040527]
[1739272190041,0.80904048,98009.0,98008.0,0.00040527]
[1739272190840,0.44824048,98009.0,98008.0,0.00040527]
[1739272191033,0.80904048,98009.0,98008.0,0.00040527]
[1739272194339,0.44824048,98009.0,98008.0,0.00040527]
[1739272194541,0.80904048,98009.0,98008.0,0.00040527]
[1739272194840,0.62582652,98009.0,98008.0,0.00040527]
[1739272195541,0.26502652,98009.0,98008.0,0.00040527]
[1739272195743,0.62582652,98009.0,98008.0,0.00040527]
[1739272197733,0.26502652,98009.0,98008.0,0.00040527]
[1739272197936,0.62582652,98009.0,98008.0,0.00040527]
[1739272198745,0.26502652,98009.0,98008.0,0.00040527]
[1739272198948,0.62582652,98009.0,98008.0,0.00040527]
[1739272199453,0.26502652,98009.0,98008.0,0.00040527]
[1739272199746,0.62582652,98009.0,98008.0,0.00040527]
[1739272202549,0.26502652,98009.0,98008.0,0.00040527]
[1739272202753,0.62582652,98009.0,98008.0,0.00040527]
[1739272203145,0.26502652,98009.0,98008.0,0.00040527]
[1739272203348,0.62582652,98009.0,98008.0,0.00040527]
[1739272204448,0.26502652,98009.0,98008.0,0.00040527]
[1739272204645,0.62582652,98009.0,98008.0,0.00040527]
[1739272206256,0.26502652,98009.0,98008.0,0.00040527]
[1739272206550,0.62582652,98009.0,98008.0,0.00040527]
[1739272208146,0.77883601,98009.0,98008.0,0.00040527]
[1739272209257,0.2040506,98000.0,97999.0,0.00015298]
[1739272209455,0.5648506,98000.0,97999.0,0.00015298]
[1739272211547,0.5658506,98000.0,97999.0,0.00515298]
[1739272212155,0.5668506,98000.0,97999.0,0.01415298]
[1739272215754,0.61646182,98000.0,97999.0,0.01415298]
[1739272216757,0.61546182,98000.0,97999.0,0.01015298]
[1739272216956,0.61646182,98000.0,97999.0,0.01015298]
[1739272217755,0.61546182,98000.0,97999.0,0.01015298]
[1739272218462,0.61546182,98000.0,97999.0,0.00815298]
[1739272221556,0.25466182,98000.0,97999.0,0.00815298]
[1739272221954,0.61546182,98000.0,97999.0,0.00815298]
[1739272223349,0.61546182,98000.0,97999.0,8e-08]
[1739272223865,0.83336182,98000.0,97999.0,8e-08]
[1739272225661,0.86566182,98000.0,97999.0,8e-08]
[1739272226363,1.0200971,98000.0,97999.0,8e-08]
[1739272227365,0.2040839,97984.0,97983.0,0.0309]
[1739272227560,0.5648839,97984.0,97983.0,0.0309]
[1739272227760,0.9256839,97984.0,97983.0,0.0309]
[1739272228957,0.9266839,97984.0,97983.0,0.0329]
[1739272229160,0.9286839,97984.0,97983.0,0.0359]
[1739272229364,0.9276839,97984.0,97983.0,0.0339]
[1739272229562,0.9276839,97984.0,97983.0,0.0359]
[1739272229963,0.9266839,97984.0,97983.0,0.0349]
[1739272230166,0.93671587,97984.0,97983.0,0.0349]
[1739272231059,0.93671587,97984.0,97983.0,0.004]
[1739272233463,0.95053197,97984.0,97976.0,0.033]
[1739272233662,0.2040985,97977.0,97976.0,0.033]
[1739272234161,0.95105198,97984.0,97965.0,0.031]
[1739272234162,0.2041214,97966.0,97965.0,0.031]
[1739272234363,0.2041214,97966.0,97965.0,0.0625]
[1739272235158,0.2041214,97966.0,97965.0,0.031]
[1739272235757,0.2041214,97966.0,97965.0,0.035]
[1739272236670,0.2051214,97966.0,97965.0,0.036]
[1739272253879,0.25475495,97966.0,97965.0,0.036]
[1739272254881,0.2041276,97963.0,97962.0,0.35961305]
[1739272256380,0.204136,97959.0,97958.0,0.270338]
[1739272257582,0.205136,97959.0,97958.0,0.270338]
[1739272257772,0.205136,97959.0,97958.0,0.0662]
[1739272258275,0.205136,97959.0,97958.0,0.1313]
[1739272258881,0.207136,97959.0,97958.0,0.1313]
[1739272259081,0.207136,97959.0,97958.0,0.0651]
[1739272259683,0.206136,97959.0,97958.0,0.0651]
[1739272260381,0.206136,97959.0,97958.0,0.0333]
[1739272261782,0.002,97959.0,97930.0,0.07863165]
[1739272261981,0.002,97959.0,97942.0,0.0615]
[1739272261982,0.2041647,97946.0,97942.0,0.0615]
[1739272262180,0.2041647,97946.0,97944.0,0.2041669]
[1739272264084,0.2051647,97946.0,97944.0,0.2041669]
[1739272264988,0.2071647,97946.0,97944.0,0.2041669]
[1739272265586,0.2041693,97943.0,97942.0,0.0615]
[1739272266785,0.2061693,97943.0,97942.0,0.0615]
[1739272267188,0.2071693,97943.0,97942.0,0.0615]
[1739272269488,0.2051693,97943.0,97942.0,0.0615]
[1739272269687,0.2061693,97943.0,97942.0,0.0615]
[1739272271580,0.2061693,97943.0,97941.0,0.04181092]
[1739272271581,0.002,97943.0,97941.0,0.01001092]
[1739272271786,0.2041839,97936.0,97935.0,0.0662]
[1739272271991,0.2041902,97933.0,97926.0,0.0309]
[1739272272382,0.2041902,97933.0,97930.0,0.01035894]
[1739272273383,0.2051902,97933.0,97930.0,0.01035894]
[1739272274692,0.2071902,97933.0,97930.0,0.01035894]
[1739272276186,0.003,97933.0,97931.0,0.2041937]
[1739272278685,0.003,97933.0,97932.0,1.50153141]
[1739272279085,0.2041641,97946.0,97934.0,0.2041866]
[1739272279285,0.15258077,97949.0,97941.0,0.3608]
[1739272279492,0.2041685,97944.0,97941.0,0.3608]
[1739272279688,0.2041685,97944.0,97942.0,0.0312]
[1739272282091,0.2041685,97944.0,97942.0,0.04159191]
[1739272282399,0.2061685,97944.0,97942.0,0.04359191]
[1739272285705,0.2061685,97944.0,97942.0,0.002]
[1739272285891,0.0309,97943.0,97942.0,0.002]
[1739272287602,0.0319,97943.0,97942.0,0.002]
[1739272288302,0.2370693,97943.0,97942.0,0.002]
[1739272291895,0.002,97943.0,97942.0,0.2061714]
[1739272292098,0.002,97943.0,97942.0,0.5669714]
[1739272292293,0.15258077,97947.0,97946.0,0.2041631]
[1739272292806,0.02,97950.0,97949.0,0.2041568]
[1739272293006,0.02,97950.0,97949.0,0.2703568]
[1739272295102,0.021,97950.0,97949.0,0.2733568]
[1739272297108,0.021,97950.0,97949.0,0.28383145]
[1739272300099,0.021,97950.0,97949.0,0.07967465]
[1739272300100,0.2251547,97950.0,97949.0,0.07967465]
[1739272301902,0.2251547,97950.0,97949.0,0.0692]
[1739272305607,0.2251547,97950.0,97949.0,0.003]